fUST/lending_fUST_20250722
["ID","MTS","AMOUNT","RATE_DAILY","PERIOD"]
[373991294,1753171846729,-1221.7,0.00020705,2]
[373991295,1753171846739,-658.48,0.00020705,2]
[373991296,1753171846748,-2348.37,0.00020705,2]
[373991297,1753171846758,-460.0,0.00020705,2]
[373991298,1753171846768,-1354.39,0.00020705,2]
[373991299,1753171846778,-460.0,0.00020707,2]
[373991300,1753171846788,-478.29,0.00020707,2]
[373991301,1753171846798,-474.0,0.00020708,2]
[373991302,1753171846808,-1065.06,0.00020708,2]
[373991303,1753171846818,-949.516,0.00020724,2]
[373991304,1753171846828,-800.55,0.00020809,2]
[373991305,1753171846837,-1466.4,0.00020809,2]
[373991306,1753171846847,-460.0,0.00020809,2]
[373991307,1753171846858,-460.0,0.0002081,2]
[373991308,1753171846867,-553.13,0.0002081,2]
[373991309,1753171846876,-1939.08,0.0002081,2]
[373991310,1753171846886,-541.03,0.00020812,2]
[373991311,1753171846895,-1075.91,0.00020813,2]
[373991312,1753171846904,-1075.91,0.00020813,2]
[373991313,1753171846914,-715.39,0.00020813,2]
[373991314,1753171846927,-151.0,0.00020887,4]
[373991315,1753171846937,-3040.14357252,0.00020934,4]
[373991316,1753171846947,-660.0,0.00020951,2]
[373991317,1753171846957,-900.73,0.00020978,2]
[373991318,1753171846974,-1509.99,0.00020979,2]
[373991319,1753171846983,-460.0,0.00020979,2]
[373991320,1753171846993,-1221.7,0.00020979,2]
[373991321,1753171847002,-658.48,0.00020979,2]
[373991322,1753171847012,-2348.37,0.00020979,2]
[373991323,1753171847022,-345.88425002,0.00020979,2]
[373991324,1753171847035,-1354.39,0.00020979,2]
[373991325,1753171847045,-460.0,0.00020981,2]
[373991326,1753171847055,-478.29,0.00020981,2]
[373991327,1753171847064,-474.0,0.00020982,2]
[373991328,1753171847075,-1065.06,0.00020982,2]
[373991329,1753171847084,-798.08399168,0.00021001,2]
[373991330,1753171847093,-6245.09247121,0.00021064,2]
[373991331,1753171847103,-800.55,0.00021083,2]
[373991332,1753171847112,-1466.4,0.00021083,2]
[373991333,1753171847122,-166.7619367,0.00021083,2]
[373991334,1753171847132,-460.0,0.00021084,2]
[373991335,1753171847141,-553.13,0.00021084,2]
[373991336,1753171847151,-1939.08,0.00021084,2]
[373991337,1753171847161,-541.03,0.00021086,2]
[373991338,1753171847171,-2289.91394975,0.00021087,2]
[373991339,1753171847180,-1075.91,0.00021087,2]
[373991340,1753171847190,-2176.77,0.00021087,2]
[373991341,1753171847200,-715.39,0.00021087,2]
[373991342,1753171847210,-3040.14357252,0.0002121,4]
[373991343,1753171847220,-900.73,0.00021252,2]
[373991344,1753171847229,-1509.99,0.00021253,2]
[373991345,1753171847239,-460.0,0.00021253,2]
[373991346,1753171847251,-1221.7,0.00021253,2]
[373991347,1753171847260,-658.48,0.00021253,2]
[373991348,1753171847272,-1995.75035649,0.00021253,2]
[373991349,1753171847307,-460.0,0.00016872,2]
[373991350,1753171847318,-309.633893,0.00021253,2]
[373991351,1753171847331,-42.98575051,0.00021253,2]
[373991352,1753171847341,-1354.39,0.00021253,2]
[373991353,1753171847351,-509.39995056,0.00021255,2]
[373991354,1753171847361,-478.29,0.00021255,2]
[373991355,1753171847370,-474.0,0.00021256,2]
[373991356,1753171847380,-1065.06,0.00021256,2]
[373991357,1753171847390,-2098.57299128,0.00021299,2]
[373991358,1753171847402,-3054.89417304,0.00021299,2]
[373991359,1753171847412,-800.55,0.00021357,2]
[373991360,1753171847421,-1466.4,0.00021357,2]
[373991361,1753171847431,-460.0,0.00021358,2]
[373991362,1753171847440,-553.13,0.00021358,2]
[373991363,1753171847451,-1939.08,0.00021358,2]
[373991364,1753171847461,-541.03,0.0002136,2]
[373991365,1753171847471,-1075.91,0.00021361,2]
[373991366,1753171847481,-2176.77,0.00021361,2]
[373991367,1753171847498,-715.39,0.00021361,2]
[373991368,1753171847507,-151.0,0.00021389,4]
[373991369,1753171847517,-3040.14357252,0.00021486,5]
[373991370,1753171847529,-760.0,0.00021499,2]
[373991371,1753171847539,-340.61416406,0.00021526,2]
[373991372,1753171847551,-560.11583594,0.00021526,2]
[373991373,1753171847561,-1509.99,0.00021527,2]
[373991374,1753171847571,-543.97681544,0.00021527,2]
[373991375,1753171847581,-1221.7,0.00021527,2]
[373991376,1753171847591,-658.48,0.00021527,2]
[373991377,1753171847600,-2348.37,0.00021527,2]
[373991378,1753171847610,-1354.39,0.00021527,2]
[373991379,1753171847619,-478.29,0.00021529,2]
[373991380,1753171847630,-474.0,0.0002153,2]
[373991381,1753171847640,-1065.06,0.0002153,2]
[373991382,1753171847650,-800.55,0.00021631,2]
[373991383,1753171847660,-1466.4,0.00021631,2]
[373991384,1753171847669,-353.67021801,0.00021632,2]
[373991385,1753171847679,-553.13,0.00021632,2]
[373991386,1753171847689,-1939.08,0.00021632,2]
[373991387,1753171847699,-541.03,0.00021633,2]
[373991388,1753171847709,-1075.91,0.00021635,2]
[373991389,1753171847718,-2176.77,0.00021635,2]
[373991390,1753171847728,-715.39,0.00021635,2]
[373991391,1753171847737,-800.0,0.00021689,2]
[373991392,1753171847747,-3040.14357252,0.00021762,5]
[373991393,1753171847757,-900.73,0.000218,2]
[373991394,1753171847766,-1509.99,0.00021801,2]
[373991395,1753171847777,-1221.7,0.00021801,2]
[373991396,1753171847787,-658.48,0.00021801,2]
[373991397,1753171847797,-2348.37,0.00021801,2]
[373991398,1753171847806,-1354.39,0.00021801,2]
[373991399,1753171847816,-478.29,0.00021803,2]
[373991400,1753171847827,-474.0,0.00021804,2]
[373991401,1753171847838,-1065.06,0.00021804,2]
[373991402,1753171847848,-151.0,0.0002189,5]
[373991403,1753171847858,-800.55,0.00021905,2]
[373991404,1753171847868,-1466.4,0.00021905,2]
[373991405,1753171847878,-553.13,0.00021906,2]
[373991406,1753171847889,-1939.08,0.00021906,2]
[373991407,1753171847900,-541.03,0.00021907,2]
[373991408,1753171847910,-1075.91,0.00021909,2]
[373991409,1753171847920,-2176.77,0.00021909,2]
[373991410,1753171847930,-715.39,0.00021909,2]
[373991411,1753171847940,-500.0,0.00021917,2]
[373991412,1753171847950,-500.0,0.00021917,2]
[373991413,1753171847960,-500.0,0.00021917,2]
[373991414,1753171847970,-500.0,0.00021917,2]
[373991415,1753171847979,-500.0,0.00021917,2]
[373991416,1753171847990,-192.28591105,0.00021917,2]
[373991417,1753171847999,-150.0,0.00021918,2]
[373991418,1753171848009,-150.0,0.00021918,2]
[373991419,1753171848019,-3984.73336454,0.0002195,2]
[373991420,1753171848030,-1324.51,0.00022,7]
[373991421,1753171848040,-1725.44,0.00022,7]
[373991422,1753171848049,-40564.80389475,0.00022,2]
[373991423,1753171848062,-441.2363975,0.00022,2]
[373991424,1753171848082,-151.0,0.00020647,2]
[373991425,1753171848092,-4313.48970775,0.00022,2]
[373991426,1753171848102,-2531.72,0.00022,7]
[373991427,1753171848112,-151.0,0.00022,7]
[373991428,1753171848122,-168.0,0.00022,2]
[373991429,1753171848131,-151.0,0.00022,7]
[373991430,1753171848141,-151.0,0.00022,7]
[373991431,1753171848151,-151.0,0.00022,7]
[373991432,1753171848160,-221.0,0.00022,2]
[373991433,1753171848171,-223.0315306,0.00022016,2]
[373991434,1753171848181,-3040.14357252,0.00022038,6]
[373991435,1753171848191,-180.0,0.00022047,2]
[373991436,1753171848201,-648.0,0.00022053,2]
[373991437,1753171848212,-2157.0,0.00022053,2]
[373991438,1753171848222,-968.0,0.00022053,2]
[373991439,1753171848242,-9152.55768383,0.00022062,2]
[373991440,1753171848253,-900.73,0.00022073,2]
[373991441,1753171848263,-1509.99,0.00022075,2]
[373991442,1753171848274,-1221.7,0.00022075,2]
[373991443,1753171848284,-658.48,0.00022075,2]
[373991444,1753171848294,-2348.37,0.00022075,2]
[373991445,1753171848304,-478.29,0.00022077,2]
[373991446,1753171848315,-474.0,0.00022077,2]
[373991447,1753171848325,-1065.06,0.00022078,2]
[373991448,1753171848335,-150.467,0.00022108,2]
[373991449,1753171848346,-800.55,0.00022179,2]
[373991450,1753171848356,-1466.4,0.00022179,2]
[373991451,1753171848367,-553.13,0.0002218,2]
[373991452,1753171848377,-1939.08,0.0002218,2]
[373991453,1753171848387,-541.03,0.00022181,2]
[373991454,1753171848397,-1075.91,0.00022183,2]
[373991455,1753171848408,-2176.77,0.00022183,2]
[373991456,1753171848419,-715.39,0.00022183,2]
[373991457,1753171848431,-221.0,0.00022192,7]
[373991458,1753171848442,-3040.14357252,0.00022314,7]
[373991459,1753171848454,-900.73,0.00022347,2]
[373991460,1753171848465,-1509.99,0.00022349,2]
[373991461,1753171848476,-1221.7,0.00022349,2]
[373991462,1753171848488,-658.48,0.00022349,2]
[373991463,1753171848499,-2348.37,0.00022349,2]
[373991464,1753171848509,-478.29,0.00022351,2]
[373991465,1753171848519,-474.0,0.00022351,2]
[373991466,1753171848532,-1065.06,0.00022352,2]
[373991467,1753171848541,-151.0,0.00022392,5]
[373991468,1753171848551,-2200.0,0.00022398,2]
[373991469,1753171848561,-12619.94447631,0.000224,7]
[373991470,1753171848571,-2289.91394975,0.00022434,2]
[373991471,1753171848581,-800.55,0.00022453,2]
[373991472,1753171848591,-1466.4,0.00022453,2]
[373991473,1753171848601,-553.13,0.00022454,2]
[373991474,1753171848611,-1939.08,0.00022454,2]
[373991475,1753171848621,-541.03,0.00022455,2]
[373991476,1753171848630,-2176.77,0.00022457,2]
[373991477,1753171848640,-715.39,0.00022457,2]
[373991478,1753171848651,-2992.0,0.00022465,2]
[373991479,1753171848662,-502.0,0.00022534,6]
[373991480,1753171848671,-530.8772395,0.00022534,4]
[373991481,1753171848681,-569.13,0.00022534,6]
[373991482,1753171848691,-3040.14357252,0.0002259,7]
[373991483,1753171848700,-151.0,0.000226,7]
[373991484,1753171848710,-900.73,0.00022621,2]
[373991485,1753171848719,-1509.99,0.00022623,2]
[373991486,1753171848729,-1221.7,0.00022623,2]
[373991487,1753171848738,-658.48,0.00022623,2]
[373991488,1753171848748,-2348.37,0.00022623,2]
[373991489,1753171848757,-478.29,0.00022625,2]
[373991490,1753171848767,-474.0,0.00022625,2]
[373991491,1753171848779,-1065.06,0.00022626,2]
[373991492,1753171848788,-502.0,0.00022634,2]
[373991493,1753171848798,-569.13,0.00022634,6]
[373991494,1753171848808,-800.55,0.00022727,2]
[373991495,1753171848818,-1466.4,0.00022727,2]
[373991496,1753171848828,-553.13,0.00022728,2]
[373991497,1753171848837,-1939.08,0.00022728,2]
[373991498,1753171848847,-541.03,0.00022729,2]
[373991499,1753171848857,-2176.77,0.00022731,2]
[373991500,1753171848866,-715.39,0.00022731,2]
[373991501,1753171848876,-502.022,0.00022734,6]
[373991502,1753171848886,-569.13,0.00022734,5]
[373991503,1753171848896,-164.00619825,0.00022767,2]
[373991504,1753171848905,-1154.905217,0.00022795,2]
[373991505,1753171848914,-159.8957685,0.00022795,2]
[373991506,1753171848924,-178.204927,0.00022795,2]
[373991507,1753171848934,-569.13,0.00022834,3]
[373991508,1753171848944,-3040.14357252,0.00022866,8]
[373991509,1753171848953,-151.0,0.00022893,6]
[373991510,1753171848963,-900.73,0.00022895,2]
[373991511,1753171848972,-1509.99,0.00022897,2]
[373991512,1753171848982,-1221.7,0.00022897,2]
[373991513,1753171848992,-658.48,0.00022897,2]
[373991514,1753171849002,-2348.37,0.00022897,2]
[373991515,1753171849011,-478.29,0.00022899,2]
[373991516,1753171849021,-474.0,0.00022899,2]
[373991517,1753171849032,-569.13,0.00022934,7]
[373991518,1753171849043,-4000.0,0.00022987,4]
[373991519,1753171849053,-1809.33,0.00023,2]
[373991520,1753171849064,-2531.72,0.00023,7]
[373991521,1753171849073,-160.0,0.00023,2]
[373991522,1753171849083,-800.55,0.00023001,2]
[373991523,1753171849093,-1466.4,0.00023001,2]
[373991524,1753171849103,-553.31267498,0.00023002,2]
[373991525,1753171849113,-1939.27393113,0.00023002,2]
[373991526,1753171849123,-541.26337716,0.00023003,2]
[373991527,1753171849133,-715.44,0.00023005,2]
[373991528,1753171849144,-221.0,0.00023014,7]
[373991529,1753171849153,-569.13,0.00023034,3]
[373991530,1753171849163,-164.00619825,0.00023068,2]
[373991531,1753171849173,-45319.53,0.000231,2]
[373991532,1753171849182,-152.674708,0.000231,7]
[373991533,1753171849193,-569.13,0.00023134,6]
[373991534,1753171849204,-3040.14357252,0.00023141,8]
[373991535,1753171849359,-900.83240165,0.00023169,2]
[373991536,1753171849372,-1510.0573572,0.00023171,2]
[373991537,1753171849383,-1221.90621147,0.00023171,2]
[373991538,1753171849392,-658.56788271,0.00023171,2]
[373991539,1753171849402,-2348.46312529,0.00023171,2]
[373991540,1753171849412,-478.32331493,0.00023173,2]
[373991541,1753171849422,-478.97531121,0.00023173,2]
[373991542,1753171849432,-1324.51,0.000232,7]
[373991543,1753171849442,-1725.44,0.000232,7]
[373991544,1753171849452,-569.13,0.00023234,2]
[373991545,1753171849462,-800.63,0.00023275,2]
[373991546,1753171849472,-1466.51805958,0.00023275,2]
[373991547,1753171849482,-569.13,0.00023334,4]
[373991548,1753171849493,-429.6101251,0.0002337,2]
[373991549,1753171849505,-181.7221097,0.0002337,2]
[373991550,1753171849515,-164.00619825,0.0002337,2]
[373991551,1753171849528,-231.28369723,0.00023385,2]
[373991552,1753171849539,-151.0,0.00023395,6]
[373991553,1753171849549,-151.0,0.000234,6]
[373991554,1753171849559,-3040.14357252,0.00023417,9]
[373991555,1753171849568,-569.13,0.00023434,2]
[373991556,1753171849578,-569.13,0.00023534,4]
[373991557,1753171849588,-157.052084,0.00023537,2]
[373991558,1753171849598,-178.204927,0.00023616,2]
[373991559,1753171849608,-569.13,0.00023634,6]
[373991560,1753171849618,-157.052084,0.00023635,14]
[373991561,1753171849628,-3040.14357252,0.00023693,9]
[373991562,1753171849638,-569.13,0.00023734,3]
[373991563,1753171849647,-157.052084,0.0002377,30]
[373991564,1753171849657,-569.13,0.00023834,7]
[373991565,1753171849666,-166144.23274838,0.00023888,2]
[373991566,1753171849676,-151.0,0.00023888,7]
[373991567,1753171849685,-151.0,0.00023888,7]
[373991568,1753171849695,-154.354293,0.00023888,7]
[373991569,1753171849704,-151.0,0.00023888,7]
[373991570,1753171849714,-151.0,0.00023897,6]
[373991571,1753171849723,-1407.29385189,0.000239,2]
[373991572,1753171849734,-645.438,0.00023904,2]
[373991573,1753171849743,-600.0,0.00023904,2]
[373991574,1753171849752,-569.13,0.00023934,4]
[373991575,1753171849762,-3040.14357252,0.00023969,10]
[373991576,1753171849772,-1000.0,0.00024,2]
[373991577,1753171849784,-1000.0,0.00024,2]
[373991578,1753171849794,-1000.0,0.00024,2]
[373991579,1753171849804,-1000.0,0.00024,2]
[373991580,1753171849813,-1000.0,0.00024,2]
[373991581,1753171849823,-1000.0,0.00024,2]
[373991582,1753171849832,-1000.0,0.00024,2]
[373991583,1753171849842,-1000.0,0.00024,2]
[373991584,1753171849851,-1000.0,0.00024,2]
[373991585,1753171849861,-1000.0,0.00024,2]
[373991586,1753171849871,-1000.0,0.00024,2]
[373991587,1753171849880,-1000.0,0.00024,2]
[373991588,1753171849890,-1000.0,0.00024,2]
[373991589,1753171849899,-1000.0,0.00024,2]
[373991590,1753171849909,-1000.0,0.00024,2]
[373991591,1753171849918,-1000.0,0.00024,2]
[373991592,1753171849928,-1000.0,0.00024,2]
[373991593,1753171849937,-1000.0,0.00024,2]
[373991594,1753171849947,-1000.0,0.00024,2]
[373991595,1753171849958,-1000.0,0.00024,2]
[373991596,1753171849968,-1000.0,0.00024,2]
[373991597,1753171849977,-1000.0,0.00024,2]
[373991598,1753171849987,-1000.0,0.00024,2]
[373991599,1753171849996,-1000.0,0.00024,2]
[373991600,1753171850005,-1000.0,0.00024,2]
[373991601,1753171850015,-1000.0,0.00024,2]
[373991602,1753171850027,-1000.0,0.00024,2]
[373991603,1753171850037,-1000.0,0.00024,2]
[373991604,1753171850047,-1000.0,0.00024,2]
[373991605,1753171850057,-1000.0,0.00024,2]
[373991606,1753171850067,-922.91,0.00024,2]
[373991607,1753171850078,-157.052084,0.00024,14]
[373991608,1753171850088,-2531.72,0.00024,7]
[373991609,1753171850098,-526.07605158,0.00024,7]
[373991610,1753171850107,-215.80012421,0.00024,7]
[373991611,1753171850117,-215.80012421,0.00024,10]
[373991612,1753171850126,-231.06963584,0.00024,7]
[373991613,1753171850136,-160.0,0.00024,7]
[373991614,1753171850146,-839.90542673,0.00024,7]
[373991615,1753171850156,-160.0,0.00024,7]
[373991616,1753171850166,-160.0,0.00024,10]
[373991617,1753171850176,-157.052084,0.00024027,30]
[373991618,1753171850186,-569.13,0.00024034,4]
[373991619,1753171850195,-45319.53,0.000241,2]
[373991620,1753171850205,-569.13,0.00024134,7]
[373991621,1753171850215,-227.0,0.00024164,7]
[373991622,1753171850224,-151.0,0.000242,5]
[373991623,1753171850234,-569.13,0.00024234,3]
[373991624,1753171850244,-3040.14357252,0.00024245,10]
[373991625,1753171850255,-1725.44,0.000243,7]
[373991626,1753171850264,-157.052084,0.000243,3]
[373991627,1753171850278,-569.16336058,0.00024334,5]
[373991628,1753171850287,-800.0,0.00024337,2]
[373991629,1753171850297,-151.0,0.00024398,7]
[373991630,1753171850307,-196.279069,0.00024401,8]
[373991631,1753171850316,-1178.207867,0.0002452,5]
[373991632,1753171850326,-3040.14357252,0.00024521,11]
[373991633,1753171850336,-1000.0,0.0002454,5]
[373991634,1753171850346,-1000.0,0.0002456,5]
[373991635,1753171850355,-157.052084,0.00024564,6]
[373991636,1753171850364,-206.0,0.0002457,2]
[373991637,1753171850374,-306.0,0.00024579,2]
[373991638,1753171850384,-1000.0,0.0002458,5]
[373991639,1753171850393,-151.0,0.000246,7]
[373991640,1753171850404,-1000.0,0.000246,5]
[373991641,1753171850413,-153.3382709,0.00024612,2]
[373991642,1753171850422,-153.0,0.00024612,2]
[373991643,1753171850432,-306.0000001,0.00024612,2]
[373991644,1753171850442,-577.4526085,0.00024612,2]
[373991645,1753171850451,-577.4526085,0.00024612,2]
[373991646,1753171850461,-577.4526085,0.00024612,2]
[373991647,1753171850471,-1154.905217,0.00024612,2]
[373991648,1753171850480,-166.6610034,0.00024612,2]
[373991649,1753171850493,-577.4526085,0.00024612,2]
[373991650,1753171850503,-576.431548,0.00024612,2]
[373991651,1753171850513,-159.8957685,0.00024612,2]
[373991652,1753171850522,-151.0,0.00024612,7]
[373991653,1753171850533,-151.0,0.0002465,7]
[373991654,1753171850543,-151.0,0.0002465,7]
[373991655,1753171850552,-541.71,0.00024657,2]
[373991656,1753171850561,-541.71,0.00024657,2]
[373991657,1753171850571,-541.71,0.00024657,2]
[373991658,1753171850581,-541.71,0.00024657,2]
[373991659,1753171850591,-541.71,0.00024657,2]
[373991660,1753171850600,-541.71,0.00024657,2]
[373991661,1753171850610,-541.71,0.00024657,2]
[373991662,1753171850619,-541.71,0.00024657,2]
[373991663,1753171850629,-541.71,0.00024657,2]
[373991664,1753171850638,-541.71,0.00024657,2]
[373991665,1753171850649,-541.71,0.00024657,2]
[373991666,1753171850658,-541.71,0.00024657,2]
[373991667,1753171850668,-541.71,0.00024657,2]
[373991668,1753171850677,-541.71,0.00024657,2]
[373991669,1753171850687,-541.71,0.00024657,2]
[373991670,1753171850697,-541.71,0.00024657,2]
[373991671,1753171850707,-541.71,0.00024657,2]
[373991672,1753171850717,-541.71,0.00024657,2]
[373991673,1753171850727,-541.71,0.00024657,2]
[373991674,1753171850736,-541.71,0.00024657,2]
[373991675,1753171850746,-541.71,0.00024657,2]
[373991676,1753171850756,-541.71,0.00024657,2]
[373991677,1753171850765,-541.71,0.00024657,2]
[373991678,1753171850775,-541.7866226,0.00024657,2]
[373991679,1753171850785,-200.63612521,0.00024658,2]
[373991680,1753171850795,-380.0,0.00024658,2]
[373991681,1753171850804,-200.0,0.00024658,15]
[373991682,1753171850814,-200.0,0.00024658,2]
[373991683,1753171850824,-151.42890889,0.00024658,2]
[373991684,1753171850833,-545.0,0.00024658,2]
[373991685,1753171850843,-1324.51,0.000247,7]
[373991686,1753171850853,-643.0,0.000247,2]
[373991687,1753171850862,-239.84119403,0.00024754,2]
[373991688,1753171850872,-500.0,0.00024773,2]
[373991689,1753171850882,-3040.14357252,0.00024797,11]
[373991690,1753171850891,-3388.87480334,0.000248,2]
[373991691,1753171850900,-151.0,0.000248,7]
[373991692,1753171850910,-2000.0,0.000248,2]
[373991693,1753171850920,-151.0,0.000248,7]
[373991694,1753171850930,-151.0,0.000248,7]
[373991695,1753171850939,-151.0,0.000248,7]
[373991696,1753171850950,-307025.45233783,0.000248,2]
[373991697,1753171851071,-460.0,0.00016867,2]
[373991698,1753171851080,-460.0,0.00017141,2]
[373991699,1753171851090,-920.0,0.00022075,2]
[373991700,1753171851102,-434.39,0.00022075,2]
[373991701,1753171851111,-1354.39,0.00022349,2]
[373991702,1753171851120,-12609.03723354,0.000248,2]
[373991703,1753171851133,-3657.00000014,0.000248,2]
[373991704,1753171851210,-460.0,0.00016868,2]
[373991705,1753171851220,-460.0,0.00017142,2]
[373991706,1753171851230,-460.0,0.00017415,2]
[373991707,1753171851239,-460.0,0.00017689,2]
[373991708,1753171851249,-431.28408128,0.00017963,2]
[373991709,1753171851258,-151.0,0.00020647,2]
[373991710,1753171851268,-151.0,0.00020647,2]
[373991711,1753171851279,-1120.19589709,0.00022623,2]
[373991712,1753171851296,-460.0,0.0001687,2]
[373991713,1753171851306,-234.19410291,0.00022623,2]
[373991714,1753171851316,-1354.39,0.00022897,2]
[373991715,1753171851325,-1354.61,0.00023171,2]
[373991716,1753171851335,-159.1867936,0.00024612,2]
[373991717,1753171851344,-22660.47216849,0.000248,2]
[373991718,1753171851354,-151.0,0.000248,7]
[373991719,1753171851364,-151.0,0.000248,7]
[373991720,1753171851373,-4292.39044882,0.000248,2]
[373991721,1753171851383,-6245.09247121,0.00024808,2]
[373991722,1753171851392,-500.0,0.00024873,2]
[373991723,1753171851402,-151.0,0.00024881,7]
[373991724,1753171851412,-151.0,0.000249,7]
[373991725,1753171851421,-151.0,0.000249,7]
[373991726,1753171851431,-206.0,0.000249,2]
[373991727,1753171851440,-207.0,0.000249,2]
[373991728,1753171851450,-151.0,0.000249,7]
[373991729,1753171851460,-1740.26435764,0.000249,7]
[373991730,1753171851522,-460.0,0.0001687,2]
[373991731,1753171851532,-419.15,0.00022152,2]
[373991732,1753171851542,-1589.78789179,0.000249,7]
[373991733,1753171851554,-500.0,0.000249,5]
[373991734,1753171851563,-151.0,0.000249,7]
[373991735,1753171851573,-151.0,0.000249,7]
[373991736,1753171851583,-151.0,0.000249,7]
[373991737,1753171851592,-234.96210821,0.000249,7]
[373991742,1753172033988,460.0,0.00016701,2]
[373991743,1753172060027,460.0,0.00016701,2]
[373991744,1753172067072,460.0,0.00016701,2]
[373991745,1753172132053,460.0,0.00016701,2]
[373991746,1753172163595,489.63,0.00016701,2]
[373991747,1753172187936,4023.87,0.00016701,2]
[373991749,1753172236804,460.0,0.00016701,2]
[373991750,1753172258459,2979.59,0.00016701,2]
[373991751,1753172259431,469.23,0.00016701,2]
[373991752,1753172274728,460.0,0.00016701,2]
[373991753,1753172282034,2855.44,0.00016701,2]
[373991755,1753172352341,460.0,0.00016701,2]
[373991756,1753172363636,2736.46,0.00016701,2]
[373991757,1753172377581,460.0,0.00016701,2]
[373991758,1753172377669,460.0,0.00016701,2]
[373991759,1753172471332,460.0,0.00016701,2]
[373991760,1753172472366,2622.44,0.00016701,2]
[373991761,1753172497794,460.0,0.00016701,2]
[373991762,1753172554017,3203.0,0.00024658,60]
[373991763,1753172585796,460.0,0.00016701,2]
[373991765,1753172785782,151.27664026,0.00016669,2]
[373991770,1753172922675,266.90323212,0.0001515,20]
[373991778,1753172998292,161.408051,0.00013699,2]
[373991779,1753173011451,151.27664025,0.00016669,2]
[373991825,1753173032292,-1081.0,0.00016767,2]
[373991827,1753173032302,-300.0,0.00016767,2]
[373991829,1753173032312,-300.0,0.00016767,2]
[373991831,1753173032321,-463.41417922,0.00016768,2]
[373991833,1753173032332,-460.0,0.00016768,2]
[373991836,1753173032341,-460.0,0.00016768,2]
[373991839,1753173032351,-460.0,0.00016768,2]
[373991844,1753173032361,-466.25198787,0.00016768,2]
[373991847,1753173032371,-460.0,0.00016768,2]
[373991849,1753173032381,-460.0,0.00016768,2]
[373991851,1753173032391,-399.53231192,0.00016768,2]
[373991853,1753173032404,-60.46768808,0.00016768,2]
[373991854,1753173032414,-462.08272813,0.00016768,2]
[373991856,1753173032423,-460.0,0.00016768,2]
[373991857,1753173032433,-460.0,0.00016768,2]
[373991859,1753173032443,-460.0,0.00016768,2]
[373991861,1753173032453,-430.24600537,0.00016768,2]
[373991864,1753173032462,-460.0,0.00016768,2]
[373991865,1753173032472,-461.38792092,0.00016769,2]
[373991867,1753173032483,-460.0,0.00016769,2]
[373991869,1753173032495,-460.0,0.00016769,2]
[373991871,1753173032505,-460.0,0.00016769,2]
[373991873,1753173032515,-460.0,0.00016769,2]
[373991875,1753173032525,-442.4814034,0.00016769,2]
[373991877,1753173032535,-466.09698781,0.00016769,2]
[373991879,1753173032544,-460.0,0.00016769,2]
[373991881,1753173032554,-460.0,0.00016769,2]
[373991883,1753173032563,-448.1202017,0.00016769,2]
[373991885,1753173032573,-460.0,0.00016769,2]
[373991887,1753173032583,-257.54228957,0.00016769,2]
[373991889,1753173032592,-463.01574741,0.00016769,2]
[373991891,1753173032602,-460.0,0.00016769,2]